fUSD/lending_fUSD_20260405
["ID","MTS","AMOUNT","RATE_DAILY","PERIOD"]
[419746764,1775352650840,-785.54,0.0001599,2]
[419746765,1775352650850,-1183.88711852,0.0001599,2]
[419746766,1775352650859,-151.0,0.00015991,2]
[419746767,1775352650869,-500.0,0.00015992,2]
[419746768,1775352650880,-500.0,0.00015993,2]
[419746769,1775352650890,-431.42104867,0.00015993,2]
[419746770,1775352650899,-551.03,0.00015993,2]
[419746771,1775352650909,-551.03,0.00015993,2]
[419746772,1775352650918,-734.01,0.00015993,2]
[419746773,1775352650927,-734.01,0.00015993,2]
[419746774,1775352650937,-500.0,0.00015993,2]
[419746775,1775352650946,-500.0,0.00015993,2]
[419746776,1775352650955,-500.0,0.00015993,2]
[419746777,1775352650965,-500.0,0.00015993,2]
[419746778,1775352650974,-753.88,0.00015993,2]
[419746779,1775352650985,-753.88,0.00015993,2]
[419746780,1775352650995,-581.88386575,0.00015993,2]
[419746781,1775352651005,-500.0,0.00015993,2]
[419746782,1775352651015,-500.0,0.00015993,2]
[419746783,1775352651025,-500.0,0.00015993,2]
[419746784,1775352651034,-500.0,0.00015993,2]
[419746785,1775352651044,-500.0,0.00015993,2]
[419746786,1775352651053,-500.0,0.00015993,2]
[419746787,1775352651063,-500.0,0.00015993,2]
[419746788,1775352651072,-500.0,0.00015993,2]
[419746789,1775352651082,-500.0,0.00015993,2]
[419746790,1775352651091,-500.0,0.00015993,2]
[419746791,1775352651100,-500.0,0.00015993,2]
[419746792,1775352651108,-500.0,0.00015993,2]
[419746793,1775352651117,-500.0,0.00015993,2]
[419746794,1775352651127,-500.0,0.00015993,2]
[419746795,1775352651135,-500.0,0.00015993,2]
[419746796,1775352651145,-500.0,0.00015993,2]
[419746797,1775352651154,-500.0,0.00015993,2]
[419746798,1775352651163,-500.0,0.00015993,2]
[419746799,1775352651172,-500.0,0.00015993,2]
[419746800,1775352651182,-500.0,0.00015993,2]
[419746801,1775352651193,-500.0,0.00015993,2]
[419746802,1775352651202,-500.0,0.00015993,2]
[419746803,1775352651211,-500.0,0.00015993,2]
[419746804,1775352651221,-500.0,0.00015993,2]
[419746805,1775352651230,-500.0,0.00015993,2]
[419746806,1775352651240,-500.0,0.00015993,2]
[419746807,1775352651249,-500.0,0.00015993,2]
[419746808,1775352651259,-500.0,0.00015993,2]
[419746809,1775352651268,-500.0,0.00015993,2]
[419746810,1775352651279,-500.0,0.00015993,2]
[419746811,1775352651288,-500.0,0.00015993,2]
[419746812,1775352651297,-500.0,0.00015993,2]
[419746813,1775352651308,-500.0,0.00015993,2]
[419746814,1775352651318,-500.0,0.00015993,2]
[419746815,1775352651328,-500.0,0.00015993,2]
[419746816,1775352651337,-500.0,0.00015993,2]
[419746817,1775352651347,-500.0,0.00015993,2]
[419746818,1775352651357,-500.0,0.00015993,2]
[419746819,1775352651367,-500.0,0.00015993,2]
[419746820,1775352651378,-500.0,0.00015993,2]
[419746821,1775352651389,-500.0,0.00015993,2]
[419746822,1775352651398,-500.0,0.00015993,2]
[419746823,1775352651407,-500.0,0.00015993,2]
[419746824,1775352651417,-500.0,0.00015993,2]
[419746825,1775352651426,-500.0,0.00015993,2]
[419746826,1775352651435,-500.0,0.00015993,2]
[419746827,1775352651444,-500.0,0.00015993,2]
[419746828,1775352651453,-500.0,0.00015993,2]
[419746829,1775352651463,-500.0,0.00015993,2]
[419746830,1775352651472,-500.0,0.00015993,2]
[419746831,1775352651481,-500.0,0.00015993,2]
[419746832,1775352651490,-500.0,0.00015993,2]
[419746833,1775352651499,-242.62789815,0.00015993,2]
[419746834,1775352651508,-500.0,0.00015993,2]
[419746835,1775352651518,-500.0,0.00015993,2]
[419746836,1775352651527,-14155.1582757,0.00015994,2]
[419746837,1775352651536,-348234.5508665,0.00015994,2]
[419746838,1775352651546,-34451.5521374,0.00015994,2]
[419746839,1775352651556,-77262.1836948,0.00015994,2]
[419746840,1775352651565,-3596.1393343,0.00015994,2]
[419746841,1775352651574,-1677.5304357,0.00015994,2]
[419746842,1775352651583,-350.0,0.00015996,2]
[419746843,1775352651592,-158.805553,0.00015997,2]
[419746844,1775352651603,-151.0,0.00015997,2]
[419746845,1775352651615,-666.0,0.00015999,2]
[419746846,1775352651625,-666.0,0.00015999,2]
[419746847,1775352651635,-666.0,0.00015999,2]
[419746848,1775352651644,-551.03,0.00015999,2]
[419746849,1775352651654,-551.03,0.00015999,2]
[419746850,1775352651663,-551.03,0.00015999,2]
[419746851,1775352651672,-551.03,0.00015999,2]
[419746852,1775352651682,-551.03,0.00015999,2]
[419746853,1775352651692,-551.03,0.00015999,2]
[419746854,1775352651701,-551.03,0.00015999,2]
[419746855,1775352651711,-551.03,0.00015999,2]
[419746856,1775352651720,-551.23074635,0.00015999,2]
[419746857,1775352651730,-734.01,0.00015999,2]
[419746858,1775352651739,-734.01,0.00015999,2]
[419746859,1775352651749,-734.01,0.00015999,2]
[419746860,1775352651758,-734.01,0.00015999,2]
[419746861,1775352651768,-734.01,0.00015999,2]
[419746862,1775352651778,-734.01,0.00015999,2]
[419746863,1775352651787,-734.01,0.00015999,2]
[419746864,1775352651797,-734.01,0.00015999,2]
[419746865,1775352651806,-734.15277774,0.00015999,2]
[419746866,1775352651817,-500.0,0.00015999,2]
[419746867,1775352651827,-500.0,0.00015999,2]
[419746868,1775352651837,-500.0,0.00015999,2]
[419746869,1775352651846,-500.0,0.00015999,2]
[419746870,1775352651856,-500.0,0.00015999,2]
[419746871,1775352651866,-474.02553387,0.00015999,2]
[419746872,1775352651877,-500.0,0.00015999,2]
[419746873,1775352651887,-267.02731271,0.00015999,2]
[419746874,1775352651896,-753.88,0.00015999,2]
[419746875,1775352651906,-753.88,0.00015999,2]
[419746876,1775352651915,-753.88,0.00015999,2]
[419746877,1775352651925,-753.88,0.00015999,2]
[419746878,1775352651935,-753.88,0.00015999,2]
[419746879,1775352651945,-753.88,0.00015999,2]
[419746880,1775352651955,-753.88,0.00015999,2]
[419746881,1775352651964,-753.98,0.00015999,2]
[419746882,1775352651974,-500.0,0.00015999,2]
[419746883,1775352651983,-500.0,0.00015999,2]
[419746884,1775352651993,-500.0,0.00015999,2]
[419746885,1775352652003,-500.0,0.00015999,2]
[419746886,1775352652012,-500.0,0.00015999,2]
[419746887,1775352652022,-500.0,0.00015999,2]
[419746888,1775352652031,-500.0,0.00015999,2]
[419746889,1775352652041,-417.0959856,0.00015999,2]
[419746890,1775352652050,-500.0,0.00015999,2]
[419746891,1775352652059,-500.0,0.00015999,2]
[419746892,1775352652068,-500.0,0.00015999,2]
[419746893,1775352652078,-500.0,0.00015999,2]
[419746894,1775352652088,-500.0,0.00015999,2]
[419746895,1775352652097,-152.1260409,0.00015999,2]
[419746896,1775352652107,-214.57871068,0.00015999,2]
[419746897,1775352652116,-500.0,0.00015999,2]
[419746898,1775352652126,-500.0,0.00015999,2]
[419746899,1775352652135,-500.0,0.00015999,2]
[419746900,1775352652144,-500.0,0.00015999,2]
[419746901,1775352652154,-500.0,0.00015999,2]
[419746902,1775352652163,-500.0,0.00015999,2]
[419746903,1775352652172,-500.0,0.00015999,2]
[419746904,1775352652182,-500.0,0.00015999,2]
[419746905,1775352652191,-500.0,0.00015999,2]
[419746906,1775352652201,-556.59256026,0.00015999,2]
[419746907,1775352652211,-150.0,0.00016,2]
[419746908,1775352652220,-150.0,0.00016,2]
[419746909,1775352652230,-240.20283738,0.00016,2]
[419746910,1775352652239,-150.0,0.00016,2]
[419746911,1775352652248,-150.0,0.00016,2]
[419746912,1775352652258,-150.0,0.00016,2]
[419746913,1775352652267,-150.58896248,0.00016,2]
[419746914,1775352652277,-150.0,0.00016,2]
[419746915,1775352652287,-286.89432771,0.00016,2]
[419746916,1775352652297,-150.0,0.00016,2]
[419746917,1775352652306,-150.0,0.00016,2]
[419746918,1775352652315,-150.0,0.00016,2]
[419746919,1775352652325,-1557723.28476124,0.00016,2]
[419746920,1775352652334,-1655.96579786,0.00016,2]
[419746921,1775352652344,-151.0,0.00016,2]
[419746922,1775352652354,-525119.74554141,0.00016,2]
[419746923,1775352653302,-258.6,0.00016,2]
[419746924,1775352653315,-383.736,0.00016,2]
[419746925,1775352653326,-546.41386167,0.00016,2]
[419746926,1775352653941,-5563756.69058607,0.00016,2]
[419746927,1775352653951,-45702.82398487,0.00016,2]
[419746928,1775352653960,-145458.16808684,0.00016,2]
[419746929,1775352653971,-134348.68811723,0.00016,2]
[419746930,1775352654447,-14282.65545075,0.00012673,2]
[419746931,1775352654458,-42855.77288043,0.00012673,2]
[419746932,1775352654467,-83261.22711957,0.00016,2]
[419746933,1775352655387,-500.90004059,0.0001255,2]
[419746934,1775352656285,-369.92838194,0.0001255,2]
[419746935,1775352656295,-338.84161806,0.00013077,2]
[419747007,1775353531391,628.890006,9.895e-05,2]
[419747008,1775353533113,9371.119994,9.903e-05,2]
[419747009,1775353559439,1467.7,4.922e-05,2]
[419747010,1775353559530,1467.7,5.181e-05,2]
[419747011,1775353559708,1467.7,5.44e-05,2]
[419747012,1775353559913,596.91,5.699e-05,2]
[419747013,1775353559938,870.79,5.699e-05,2]
[419747014,1775353560318,1467.7,5.958e-05,2]
[419747015,1775353560580,1467.7,6.217e-05,2]
[419747016,1775353560706,1193.82,6.476e-05,2]
[419747017,1775353560729,273.88,6.476e-05,2]
[419747018,1775353560905,1467.7,6.735e-05,2]
[419747019,1775353561297,1467.7,6.994e-05,2]
[419747020,1775353561858,1467.7,7.253e-05,2]
[419747021,1775353561981,1467.7,7.512e-05,2]
[419747022,1775353562076,1467.7,7.771e-05,2]
[419747023,1775353562960,1467.7,8.03e-05,2]
[419747024,1775353563122,596.91,8.289e-05,2]
[419747025,1775353563146,870.79,8.289e-05,2]
[419747026,1775353563363,1467.7,8.548e-05,2]
[419747027,1775353563474,1467.7,8.807e-05,2]
[419747028,1775353563551,1193.82,9.066e-05,2]
[419747029,1775353563574,273.88,9.066e-05,2]
[419747030,1775353563668,1467.7,9.325e-05,2]
[419747031,1775353564284,1467.7,9.584e-05,2]
[419747038,1775353667207,-1467.7,9.843e-05,2]
[419747039,1775353667235,-500.11329592,9.883e-05,2]
[419747040,1775353667262,-500.0,9.883e-05,2]
[419747041,1775353667290,-504.05506813,9.883e-05,2]
[419747042,1775353667317,-500.0,9.883e-05,2]
[419747043,1775353667344,-500.0,9.883e-05,2]
[419747044,1775353667374,-300.0,9.902e-05,2]
[419747045,1775353667773,-7127.93228076,9.903e-05,2]
[419747046,1775353670117,-10000.01,9.903e-05,2]
[419747047,1775353671807,-10000.0,9.903e-05,2]
[419747048,1775353673925,-10000.0,9.903e-05,2]
[419747049,1775353674969,-10000.0,9.903e-05,2]
[419747050,1775353680016,-10000.01,9.903e-05,2]
[419747051,1775353680145,-10000.01,9.903e-05,2]
[419747052,1775353684833,-300.0,9.902e-05,2]
[419747053,1775353684854,-300.0,9.902e-05,2]
[419747054,1775353684874,-150.0,9.902e-05,2]
[419747055,1775353684899,-8885.0,9.903e-05,2]
[419747056,1775353727720,150.0,9.606e-05,2]
[419747057,1775353732258,2000.0,9.57e-05,2]
[419747058,1775353762234,1228.35243259,9.902e-05,3]
[419747059,1775353807130,1852.42,9.528e-05,2]
[419747060,1775353822359,1215.994356,9.82e-05,2]
[419747064,1775353832184,-449.51414137,9.87e-05,2]
[419747086,1775353832497,-767.21581222,9.87e-05,2]
[419747088,1775353832506,-6.43554301,9.877e-05,2]
[419747090,1775353832518,-243.56445699,9.877e-05,2]
[419747092,1775353832527,-191.05580028,9.882e-05,2]
[419747094,1775353832537,-466.61392516,9.883e-05,2]
[419747096,1775353832548,-33.38607484,9.883e-05,2]
[419747099,1775353832558,-500.0,9.883e-05,2]
[419747101,1775353832567,-500.0,9.883e-05,2]
[419747103,1775353832577,-355.70126537,9.883e-05,2]
[419747106,1775353832599,-144.86250981,9.883e-05,2]
[419747108,1775353832609,-451.79824017,9.883e-05,2]
[419747110,1775353832621,-48.20175983,9.883e-05,2]
[419747112,1775353832630,-500.0,9.883e-05,2]
[419747114,1775353832640,-171.42744159,9.883e-05,2]
[419747116,1775353832652,-328.57255841,9.883e-05,2]
[419747118,1775353832662,-57.93054822,9.901e-05,2]
[419747122,1775353832683,-192.06945178,9.901e-05,2]
[419747124,1775353832692,-300.0,9.901e-05,2]
[419747126,1775353832702,-1200.0,9.901e-05,2]
[419747128,1775353832711,-300.0,9.901e-05,2]
[419747130,1775353832721,-1566.08582332,9.902e-05,2]
[419747132,1775353832731,-1566.08582332,9.902e-05,2]
[419747134,1775353832740,-1566.08582332,9.902e-05,2]
[419747136,1775353832749,-1566.08582332,9.902e-05,2]
[419747138,1775353832760,-1566.08582332,9.902e-05,2]
[419747140,1775353832770,-1566.08582332,9.902e-05,2]
[419747142,1775353832779,-1566.08582332,9.902e-05,2]
[419747144,1775353832789,-1566.08582332,9.902e-05,2]
[419747146,1775353832799,-1566.08582332,9.902e-05,2]
[419747148,1775353832809,-1566.08582332,9.902e-05,2]
[419747150,1775353832819,-1566.08582332,9.902e-05,2]
[419747152,1775353832828,-1566.08582332,9.902e-05,2]
[419747154,1775353832840,-1566.08582332,9.902e-05,2]
[419747156,1775353832851,-1566.08582332,9.902e-05,2]
[419747158,1775353832862,-1566.08582332,9.902e-05,2]
[419747160,1775353832872,-1566.08582332,9.902e-05,2]
[419747162,1775353832882,-1566.08582332,9.902e-05,2]
[419747164,1775353832892,-1566.08582332,9.902e-05,2]
[419747166,1775353832904,-1566.08582332,9.902e-05,2]
[419747168,1775353832913,-1566.08582332,9.902e-05,2]
[419747170,1775353832923,-1566.08582332,9.902e-05,2]
[419747172,1775353832933,-1566.08582332,9.902e-05,2]
[419747174,1775353832943,-1566.08582332,9.902e-05,2]
[419747177,1775353832953,-1566.08582332,9.902e-05,2]
[419747179,1775353832963,-1566.08582332,9.902e-05,2]
[419747180,1775353832973,-1566.08582332,9.902e-05,2]
[419747182,1775353832983,-1566.08582332,9.902e-05,2]
[419747184,1775353832993,-1566.08582332,9.902e-05,2]
[419747186,1775353833003,-1566.08582332,9.902e-05,2]
[419747188,1775353833013,-1566.08582332,9.902e-05,2]
[419747190,1775353833023,-1566.08582332,9.902e-05,2]
[419747193,1775353833032,-1566.08582332,9.902e-05,2]
[419747194,1775353833044,-1566.08582332,9.902e-05,2]
[419747196,1775353833053,-1566.08582332,9.902e-05,2]
[419747198,1775353833063,-1566.08582332,9.902e-05,2]
[419747200,1775353833073,-1566.08582332,9.902e-05,2]
[419747202,1775353833083,-1566.08582332,9.902e-05,2]
[419747204,1775353833092,-1566.08582332,9.902e-05,2]
[419747205,1775353833102,-1566.08582332,9.902e-05,2]
[419747207,1775353833112,-1566.08582332,9.902e-05,2]
[419747209,1775353833121,-1566.08582332,9.902e-05,2]
[419747210,1775353833132,-1566.08582332,9.902e-05,2]
[419747211,1775353833142,-1566.08582332,9.902e-05,2]
[419747212,1775353833152,-1566.08582332,9.902e-05,2]
[419747213,1775353833162,-1566.08582332,9.902e-05,2]
[419747214,1775353833172,-1566.08582332,9.902e-05,2]
[419747215,1775353833184,-1566.08582332,9.902e-05,2]
[419747216,1775353833195,-1566.08582332,9.902e-05,2]
[419747217,1775353833206,-1566.08582332,9.902e-05,2]
[419747218,1775353833215,-1626.31989346,9.902e-05,2]
[419747219,1775353833225,-1626.31989346,9.902e-05,2]
[419747220,1775353833234,-1626.31989346,9.902e-05,2]
[419747221,1775353833246,-1626.31989346,9.902e-05,2]
[419747222,1775353833256,-1626.31989346,9.902e-05,2]
[419747223,1775353833265,-1626.31989346,9.902e-05,2]
[419747224,1775353833275,-1626.31989346,9.902e-05,2]
[419747225,1775353833285,-1626.31989346,9.902e-05,2]
[419747226,1775353833294,-1626.31989346,9.902e-05,2]
[419747227,1775353833304,-1626.31989346,9.902e-05,2]
[419747228,1775353833314,-1626.31989346,9.902e-05,2]
[419747229,1775353833324,-1626.31989346,9.902e-05,2]
[419747230,1775353833334,-1626.31989346,9.902e-05,2]
[419747231,1775353833343,-1626.31989346,9.902e-05,2]
[419747232,1775353833353,-1626.31989346,9.902e-05,2]
[419747233,1775353833363,-1626.31989346,9.902e-05,2]
[419747234,1775353833374,-1626.31989346,9.902e-05,2]
[419747235,1775353833383,-1626.31989346,9.902e-05,2]
[419747236,1775353833393,-1626.31989346,9.902e-05,2]
[419747237,1775353833402,-1626.31989346,9.902e-05,2]
[419747238,1775353833412,-1626.31989346,9.902e-05,2]
[419747239,1775353833422,-1626.31989346,9.902e-05,2]
[419747240,1775353833431,-1626.31989346,9.902e-05,2]
[419747241,1775353833441,-1626.31989346,9.902e-05,2]
[419747242,1775353833451,-1626.31989346,9.902e-05,2]
[419747243,1775353833461,-1626.31989346,9.902e-05,2]
[419747244,1775353833471,-1626.31989346,9.902e-05,2]
[419747245,1775353833481,-1626.31989346,9.902e-05,2]
[419747246,1775353833491,-1626.31989346,9.902e-05,2]
[419747247,1775353833501,-1626.31989346,9.902e-05,2]
[419747248,1775353833511,-1626.31989346,9.902e-05,2]
[419747249,1775353833521,-1626.31989346,9.902e-05,2]
[419747250,1775353833532,-1626.31989346,9.902e-05,2]
[419747251,1775353833542,-501.00649781,9.902e-05,2]
[419747252,1775353833552,-1198.22775217,9.902e-05,2]
[419747253,1775353833562,-1198.22775217,9.902e-05,2]
[419747254,1775353833572,-1198.22775217,9.902e-05,2]
[419747255,1775353833582,-1198.22775217,9.902e-05,2]
[419747256,1775353833591,-1198.22775217,9.902e-05,2]
[419747257,1775353833601,-1198.22775217,9.902e-05,2]
[419747258,1775353833612,-162.42408175,9.902e-05,2]
[419747259,1775353833621,-1198.22775216,9.902e-05,2]
[419747260,1775353833631,-214.87116841,9.902e-05,2]
[419747261,1775353833640,-613.92735665,9.902e-05,2]
[419747262,1775353833651,-500.0,9.902e-05,2]
[419747263,1775353833661,-57632.28557196,9.903e-05,2]
[419747264,1775353833675,-2053.0,9.903e-05,2]
[419747265,1775353833765,-895.41,9.903e-05,2]
[419747266,1775353833777,-2379.26744176,9.903e-05,2]
[419747267,1775353833859,-445.34848983,9.903e-05,2]
[419747268,1775353833980,-686.64937047,9.903e-05,2]
[419747270,1775353837831,-191.05580028,9.892e-05,2]
[419747272,1775353837841,-269441.87685122,9.903e-05,2]
[419747273,1775353837850,-6568.17,0.00010054,2]
[419747274,1775353837859,-6687.78,0.00010138,2]
[419747275,1775353837868,-500.0,0.00010176,2]
[419747276,1775353837877,-504.9994632,0.00010265,2]
[419747277,1775353837887,-1383.0,0.00010346,2]
[419747278,1775353837896,-567.0,0.00010415,2]
[419747279,1775353837906,-1000.0,0.00010431,2]
[419747280,1775353837915,-1000.0,0.00010431,2]
[419747281,1775353837928,-1000.0,0.00010431,2]
[419747282,1775353837937,-1000.0,0.00010431,2]
[419747283,1775353837947,-1000.0,0.00010431,2]
[419747284,1775353837957,-1000.0,0.00010431,2]
[419747285,1775353837967,-500.0,0.0001045,2]
[419747286,1775353837977,-500.0,0.0001055,2]
[419747287,1775353837989,-500.0,0.0001055,2]
[419747288,1775353837999,-500.0,0.0001055,2]
[419747289,1775353838008,-500.0,0.0001055,2]
[419747290,1775353838017,-500.0,0.0001055,2]
[419747291,1775353838027,-500.0,0.0001055,2]
[419747292,1775353838036,-500.0,0.0001055,2]
[419747293,1775353838046,-500.0,0.0001055,2]
[419747294,1775353838056,-500.0,0.0001055,2]
[419747295,1775353838066,-500.0,0.0001055,2]
[419747296,1775353838075,-500.0,0.0001055,2]
[419747297,1775353838085,-200.0,0.0001055,2]
[419747298,1775353838094,-500.0,0.0001055,2]
[419747299,1775353838103,-500.0,0.0001055,2]
[419747300,1775353838115,-151.0,0.0001055,2]
[419747301,1775353838126,-500.0,0.0001055,2]
[419747302,1775353838135,-151.0,0.0001055,2]
[419747303,1775353838144,-500.0,0.0001055,2]
[419747304,1775353838153,-151.0,0.0001055,2]
[419747305,1775353838163,-151.0,0.0001055,2]
[419747306,1775353838173,-500.0,0.0001055,2]
[419747307,1775353838182,-151.0,0.0001055,2]
[419747308,1775353838192,-151.0,0.0001055,2]
[419747309,1775353838201,-500.0,0.0001055,2]
[419747310,1775353838210,-151.0,0.0001055,2]
[419747311,1775353838220,-151.0,0.0001055,2]
[419747312,1775353838229,-151.0,0.0001055,2]
[419747313,1775353838238,-500.0,0.0001055,2]
[419747314,1775353838248,-151.0,0.0001055,2]
[419747315,1775353838257,-151.0,0.0001055,2]
[419747316,1775353838269,-500.0,0.0001055,2]
[419747317,1775353838279,-151.0,0.0001055,2]
[419747318,1775353838290,-151.0,0.0001055,2]
[419747319,1775353838299,-500.0,0.0001055,2]
[419747320,1775353838309,-151.0,0.0001055,2]
[419747321,1775353838319,-151.0,0.0001055,2]
[419747322,1775353838328,-500.0,0.0001055,2]
[419747323,1775353838338,-151.0,0.0001055,2]
[419747324,1775353838347,-151.0,0.0001055,2]
[419747325,1775353838356,-500.0,0.0001055,2]
[419747326,1775353838366,-151.0,0.0001055,2]
[419747327,1775353838376,-151.0,0.0001055,2]
[419747328,1775353838386,-151.0,0.0001055,2]
[419747329,1775353838395,-151.0,0.0001055,2]
[419747330,1775353838405,-151.0,0.0001055,2]
[419747331,1775353838414,-151.0,0.0001055,2]
[419747332,1775353838424,-151.0,0.0001055,2]
[419747333,1775353838434,-151.0,0.0001055,2]
[419747334,1775353838444,-151.0,0.0001055,2]
[419747335,1775353838454,-151.0,0.0001055,2]
[419747336,1775353838464,-151.0,0.0001055,2]
[419747337,1775353838474,-151.0,0.0001055,2]
[419747338,1775353838483,-151.0,0.0001055,2]
[419747339,1775353838493,-151.0,0.0001055,2]
[419747340,1775353838503,-151.0,0.0001055,2]
[419747341,1775353838512,-1386.78395259,0.0001055,2]
[419747342,1775353838521,-110710.92,0.00010555,2]
[419747343,1775353838531,-9999.99,0.00010555,2]
[419747344,1775353838540,-299.99,0.00010555,2]
[419747345,1775353838550,-9999.99,0.00010555,2]
[419747346,1775353838560,-499.99,0.00010555,2]
[419747347,1775353838571,-150.99,0.00010555,2]
[419747348,1775353838581,-6805.06,0.00010555,2]
[419747349,1775353838592,-9999.99,0.00010555,2]
[419747350,1775353838602,-104717.99,0.00010555,2]
[419747351,1775353838613,-7609.78,0.00010555,2]
[419747352,1775353838623,-150.99,0.00010555,2]
[419747353,1775353838632,-9999.99,0.00010555,2]
[419747354,1775353838642,-999.99,0.00010555,2]
[419747355,1775353838652,-26015.19295906,0.00010556,2]
[419747356,1775353838662,-9999.99,0.00010556,2]
[419747357,1775353838673,-500.0,0.00010573,2]
[419747358,1775353838683,-150.0,0.00010584,2]
[419747359,1775353838693,-150.60403212,0.00010584,2]
[419747360,1775353838702,-174.08,0.00010703,2]
[419747361,1775353838711,-500.0,0.00010724,2]
[419747362,1775353838721,-2000.0,0.00010767,2]
[419747363,1775353838731,-2700.0,0.000108,3]
[419747364,1775353838742,-1600.0,0.00010814,2]
[419747365,1775353838753,-4744.48995572,0.00010828,2]
[419747366,1775353838763,-250.0,0.00010838,2]
[419747367,1775353838773,-2574.67072918,0.00010857,2]
[419747368,1775353838783,-1680.0,0.00010891,2]
[419747369,1775353838793,-420.0,0.00010891,2]
[419747370,1775353838803,-420.0,0.00010892,2]
[419747371,1775353838812,-255.0,0.00010892,2]
[419747372,1775353838823,-5000.0,0.00010894,2]
[419747373,1775353838833,-500.0,0.000109,2]
[419747374,1775353838843,-5500.0,0.000109,3]
[419747375,1775353838852,-11029.33190247,0.000109,2]
[419747376,1775353838861,-11029.33190247,0.000109,2]
[419747377,1775353838871,-600.0,0.00010911,2]
[419747378,1775353838880,-305.8,0.00010911,2]
[419747379,1775353838889,-500.0,0.00010959,2]
[419747380,1775353838900,-307.43596926,0.00010978,2]
[419747381,1775353838912,-1500.0,0.00010978,2]
[419747382,1775353838922,-1500.0,0.00010978,2]
[419747383,1775353838931,-1500.0,0.00010978,2]
[419747384,1775353838941,-1500.0,0.00010978,2]
[419747385,1775353838962,-1341.5818023,0.00010978,2]
[419747386,1775353838973,-500.0,0.00010998,2]
[419747387,1775353838983,-789.25807902,0.00011089,2]
[419747388,1775353838993,-200.0,0.00011098,2]
[419747389,1775353839004,-1438.09495884,0.00011098,2]
[419747390,1775353839015,-49383.1192251,0.00011099,2]
[419747391,1775353839026,-49383.11922508,0.00011099,2]
[419747392,1775353839036,-61122.20637395,0.00011099,2]
[419747393,1775353839046,-61122.20637391,0.00011099,2]
[419747394,1775353839056,-61122.20637391,0.00011099,2]
[419747395,1775353839066,-61122.20637391,0.00011099,2]
[419747396,1775353839075,-61122.20637391,0.00011099,2]
[419747397,1775353839085,-1000.0,0.00011121,2]
[419747398,1775353839095,-61122.20637391,0.00011167,2]
[419747399,1775353839104,-4149.2519,0.000112,2]
[419747400,1775353839114,-288.07,0.00011215,2]
[419747401,1775353839123,-49383.11922508,0.00011228,2]
[419747402,1775353839133,-14080.98571295,0.00011236,2]
[419747403,1775353839142,-500.0,0.00011272,2]
[419747404,1775353839152,-501.35044893,0.00011299,2]
[419747405,1775353839161,-500.16972536,0.00011299,2]
[419747406,1775353839171,-500.0,0.00011299,2]
[419747407,1775353839182,-326.10789128,0.00011299,2]
[419747408,1775353839192,-500.0,0.00011299,2]
[419747409,1775353839202,-1033.25825249,0.00011336,2]
[419747410,1775353839212,-150.0,0.00011365,2]
[419747411,1775353839221,-166.66,0.000114,2]
[419747412,1775353839231,-61122.20637391,0.00011432,2]
[419747413,1775353839241,-1389.4,0.00011435,2]
[419747414,1775353839250,-150855.50905021,0.00011436,2]
[419747415,1775353839260,-500.0,0.00011473,2]
[419747416,1775353839270,-4570.03,0.00011507,2]
[419747417,1775353839279,-325.4532572,0.00011526,2]
[419747418,1775353839289,-2000.0,0.00011526,2]
[419747419,1775353839298,-2000.0,0.00011526,2]
[419747420,1775353839308,-2000.0,0.00011526,2]
[419747421,1775353839318,-500.0,0.00011546,2]
[419747422,1775353839328,-2857.20167428,0.00011564,2]
[419747423,1775353839337,-8300.0,0.000116,4]
[419747424,1775353839347,-1481.10540802,0.00011635,2]
[419747425,1775353839357,-666.17858472,0.00011635,2]
[419747426,1775353839366,-200.0,0.00011646,2]
[419747427,1775353839376,-1491.30447232,0.00011646,2]
[419747428,1775353839387,-92824.74291478,0.00011659,2]
[419747429,1775353839397,-1500.0,0.00011668,2]